fUST/lending_fUST_20251008
["ID","MTS","AMOUNT","RATE_DAILY","PERIOD"]
[389827168,1759861838273,-1709.93850827,0.0001869,2]
[389827170,1759861838283,-860.3314387,0.0001869,2]
[389827172,1759861838294,-344.27777,0.0001869,2]
[389827195,1759861840607,-2898.50461422,0.0001869,2]
[389827202,1759861843846,-9624.04584462,0.0001869,2]
[389827267,1759861846646,-10151.28523876,0.0001869,2]
[389827269,1759861846658,-37480.52385397,0.0001869,2]
[389827297,1759861983787,1000.0,0.00027397,120]
[389827298,1759862191678,-497.7463583,0.00018,3]
[389827299,1759862200088,497.7463583,0.000196,14]
[389827300,1759862296190,1000.0,0.00027397,120]
[389827301,1759862378764,10000.01,0.00017,3]
[389827302,1759862378786,10000.01,0.00017,3]
[389827303,1759862378807,10000.01,0.00017,3]
[389827304,1759862378828,10000.01,0.00017,3]
[389827305,1759862378849,10000.01,0.00017,3]
[389827306,1759862378874,10000.01,0.00017,3]
[389827307,1759862378896,10000.01,0.00017,3]
[389827308,1759862378918,10000.01,0.00017,3]
[389827309,1759862378940,10000.01,0.00017,3]
[389827310,1759862378966,10000.01,0.00017,3]
[389827311,1759862378995,11831.56142009,0.00017,3]
[389827312,1759862567330,1898.20959771,0.00017244,2]
[389827313,1759862606430,1000.0,0.00027397,120]
[389827314,1759862618842,153.54240927,0.00016593,2]
[389827315,1759862620787,613.55546745,0.00016593,2]
[389827317,1759862684041,153.324101,0.00024,30]
[389827318,1759862684385,153.324101,0.000235,30]
[389827319,1759862749408,600.24459901,0.00028767,120]
[389827364,1759863032644,-354.0,0.0001818,2]
[389827365,1759863032655,-972.15258559,0.00018181,2]
[389827366,1759863032664,-3884.72173203,0.00018181,2]
[389827367,1759863032674,-300.0,0.00018295,2]
[389827368,1759863032684,-1456.41372986,0.00018298,2]
[389827369,1759863032696,-286.81356417,0.00018298,2]
[389827370,1759863032708,-908.95456817,0.00018298,2]
[389827373,1759863032742,-1735.07900676,0.00018298,2]
[389827375,1759863032751,-152.76364186,0.00018298,2]
[389827378,1759863032762,-1426.6681072,0.00018395,2]
[389827379,1759863032771,-666.0,0.00018566,2]
[389827380,1759863032780,-1308.40382858,0.00018582,2]
[389827381,1759863032790,-169.17761822,0.00018582,2]
[389827382,1759863032800,-286.51457923,0.00018589,2]
[389827383,1759863032808,-500.79321896,0.00018589,2]
[389827384,1759863032817,-105179.59999919,0.0001859,2]
[389827385,1759863032830,-132389.96502895,0.0001859,2]
[389827427,1759863038770,-1902.47090782,0.0001859,2]
[389827428,1759863038783,-455.27,0.0001859,2]
[389827429,1759863038807,-575.77620752,0.0001859,2]
[389827430,1759863038819,-45972.81486118,0.0001859,2]
[389827431,1759863038831,-2102.56601751,0.0001859,2]
[389827432,1759863038843,-671.3475859,0.0001859,2]
[389827433,1759863038854,-1855.94115,0.0001859,2]
[389827434,1759863038877,-22984.37016931,0.0001859,2]
[389827467,1759863040628,-446.77000001,0.0001859,2]
[389827486,1759863043532,-747.12916699,0.0001859,2]
[389827489,1759863043551,-28572.11232014,0.0001859,2]
[389827494,1759863043586,-277.97213239,0.0001859,2]
[389827499,1759863043628,-32.1773059,0.0001859,2]
[389827501,1759863043640,-318.68,0.0001859,2]
[389827504,1759863043651,-25515.03714719,0.0001859,2]
[389827506,1759863043661,-18757.2244321,0.00018682,2]
[389827508,1759863043670,-1304.6470345,0.00018789,2]
[389827510,1759863043679,-500.0,0.0001889,2]
[389827512,1759863043689,-175.67818814,0.00018898,2]
[389827514,1759863043699,-300.0,0.00019063,2]
[389827516,1759863043708,-300.0,0.00019063,2]
[389827518,1759863043717,-300.0,0.00019063,2]
[389827520,1759863043726,-300.0,0.00019063,2]
[389827522,1759863043735,-300.0,0.00019063,2]
[389827524,1759863043744,-300.0,0.00019063,2]
[389827526,1759863043754,-300.0,0.00019063,2]
[389827529,1759863043763,-300.0,0.00019063,2]
[389827531,1759863043773,-300.0,0.00019063,2]
[389827534,1759863043782,-300.0,0.00019063,2]
[389827536,1759863043791,-300.0,0.00019063,2]
[389827539,1759863043801,-300.0,0.00019063,2]
[389827542,1759863043810,-300.0,0.00019063,2]
[389827543,1759863043820,-300.0,0.00019063,2]
[389827547,1759863043831,-300.0,0.00019063,2]
[389827550,1759863043840,-600.0,0.00019063,2]
[389827552,1759863043850,-151.0,0.000191,2]
[389827555,1759863043859,-1426.6681072,0.00019155,2]
[389827557,1759863043869,-500.0,0.00019163,2]
[389827560,1759863043879,-278.6297192,0.00019182,2]
[389827563,1759863043889,-500.0,0.00019437,2]
[389827565,1759863043898,-533.72506543,0.00019487,2]
[389827567,1759863043909,-402.02512307,0.00019487,2]
[389827569,1759863043918,-160.0,0.00019487,2]
[389827570,1759863043928,-234.20938206,0.00019487,2]
[389827572,1759863043937,-198.59273442,0.00019498,2]
[389827574,1759863043947,-4088.44770496,0.000195,2]
[389827576,1759863043956,-4088.44770496,0.000197,2]
[389827578,1759863043966,-500.0,0.00019711,2]
[389827581,1759863043975,-500.0,0.00019713,2]
[389827582,1759863043985,-500.0,0.00019713,2]
[389827584,1759863043994,-210.0,0.00019863,3]
[389827587,1759863044006,-4088.44770496,0.000199,2]
[389827588,1759863044016,-1168.10266437,0.00019938,2]
[389827591,1759863044030,-420.0,0.00019956,2]
[389827592,1759863044040,-500.0,0.00019985,2]
[389827595,1759863044051,-234.05807603,0.0002,2]
[389827597,1759863044061,-14517.33720406,0.0002,2]
[389827599,1759863044071,-44029.03033243,0.0002,20]
[389827601,1759863044080,-366.95511062,0.0002,2]
[389827603,1759863044091,-23000.0,0.0002,2]
[389827604,1759863044100,-17574.71196574,0.0002,2]
[389827606,1759863044110,-151.0,0.0002,7]
[389827609,1759863044120,-151.0,0.0002,7]
[389827611,1759863044130,-198.29765707,0.0002,2]
[389827613,1759863044140,-168.99728248,0.0002,2]
[389827615,1759863044150,-198.0,0.0002,2]
[389827617,1759863044160,-1819.9820268,0.0002,2]
[389827619,1759863044170,-151.0,0.0002,2]
[389827621,1759863044180,-151.0,0.0002,2]
[389827623,1759863044191,-500.0,0.0002,2]
[389827625,1759863044201,-500.0,0.0002,2]
[389827627,1759863044210,-151.0,0.0002,2]
[389827629,1759863044219,-500.0,0.0002,2]
[389827631,1759863044228,-151.0,0.0002,2]
[389827633,1759863044237,-151.0,0.0002,2]
[389827635,1759863044247,-151.0,0.0002,2]
[389827637,1759863044256,-151.0,0.0002,2]
[389827638,1759863044266,-198.02716197,0.0002,2]
[389827641,1759863044276,-1135.0,0.0002,2]
[389827643,1759863044286,-151.0,0.0002,2]
[389827645,1759863044296,-151.0,0.0002,2]
[389827646,1759863044306,-160.0,0.00020056,2]
[389827648,1759863044316,-221.5072807,0.00020098,2]
[389827651,1759863044326,-4088.44770496,0.000201,2]
[389827653,1759863044335,-151.0,0.00020187,2]
[389827655,1759863044344,-151.0,0.00020187,2]
[389827656,1759863044354,-151.0,0.00020187,2]
[389827659,1759863044364,-500.0,0.00020187,2]
[389827661,1759863044375,-500.0,0.00020187,2]
[389827663,1759863044384,-678.720354,0.00020187,2]
[389827665,1759863044395,-500.0,0.00020259,2]
[389827667,1759863044404,-500.0,0.00020261,2]
[389827669,1759863044413,-1000.0,0.00020261,2]
[389827671,1759863044423,-151.0,0.00020274,2]
[389827673,1759863044432,-151.0,0.00020274,2]
[389827675,1759863044441,-500.0,0.00020274,2]
[389827676,1759863044450,-625.59985086,0.00020274,2]
[389827706,1759863044711,-151.0,0.00020274,2]
[389827709,1759863044730,-500.0,0.00020274,2]
[389827711,1759863044740,-151.0,0.00020274,2]
[389827713,1759863044749,-151.0,0.00020274,2]
[389827715,1759863044759,-198.0,0.00020274,2]
[389827717,1759863044768,-1135.0,0.00020274,2]
[389827719,1759863044777,-194.81870126,0.00020274,2]
[389827721,1759863044786,-4088.44770496,0.000203,2]
[389827723,1759863044795,-151.0,0.00020391,7]
[389827725,1759863044805,-151.0,0.00020461,2]
[389827727,1759863044814,-151.0,0.00020461,2]
[389827729,1759863044823,-151.0,0.00020461,2]
[389827731,1759863044832,-4088.44770496,0.000205,2]
[389827733,1759863044842,-500.0,0.00020533,2]
[389827735,1759863044851,-151.0,0.00020548,2]
[389827737,1759863044860,-151.0,0.00020548,2]
[389827739,1759863044870,-396.0,0.00020548,2]
[389827741,1759863044879,-396.0,0.00020548,2]
[389827743,1759863044888,-151.0,0.00020548,2]
[389827745,1759863044898,-1135.0,0.00020548,2]
[389827747,1759863044907,-260.0,0.00020604,2]
[389827749,1759863044916,-1372.26531713,0.0002061,2]
[389827751,1759863044925,-800.0,0.00020661,2]
[389827753,1759863044934,-244.42182698,0.00020698,2]
[389827755,1759863044943,-4088.44770496,0.000207,2]
[389827757,1759863044953,-800.0,0.00020704,2]
[389827759,1759863044962,-151.0,0.00020735,2]
[389827761,1759863044971,-198.0,0.00020735,2]
[389827763,1759863044980,-151.0,0.00020786,7]
[389827765,1759863044989,-151.0,0.00020786,7]
[389827766,1759863044998,-500.0,0.00020807,2]
[389827768,1759863045009,-1500.0,0.00020809,2]
[389827770,1759863045019,-800.0,0.0002082,2]
[389827772,1759863045032,-151.0,0.00020822,2]
[389827775,1759863045042,-151.0,0.00020822,2]
[389827777,1759863045051,-198.0,0.00020822,2]
[389827779,1759863045061,-1135.0,0.00020822,2]
[389827781,1759863045072,-151.0,0.00020822,7]
[389827782,1759863045082,-1450.241393,0.00020822,7]
[389827784,1759863045091,-1450.241393,0.00020822,7]
[389827786,1759863045101,-1450.241393,0.00020822,7]
[389827788,1759863045110,-1450.241393,0.00020822,7]
[389827790,1759863045120,-151.0,0.00020834,7]
[389827792,1759863045130,-151.0,0.00020834,7]
[389827794,1759863045139,-151.0,0.00020834,7]
[389827796,1759863045148,-151.0,0.00020834,7]
[389827798,1759863045157,-151.0,0.00020834,7]
[389827800,1759863045166,-151.0,0.00020834,7]
[389827802,1759863045175,-151.0,0.00020834,7]
[389827804,1759863045186,-670.0926908,0.00020849,2]
[389827806,1759863045195,-4088.44770496,0.000209,2]
[389827808,1759863045204,-151.338804,0.000209,7]
[389827810,1759863045213,-720.0,0.00020969,2]
[389827812,1759863045222,-151.0,0.00021009,2]
[389827814,1759863045231,-500.0,0.00021081,2]
[389827816,1759863045240,-151.0,0.00021096,2]
[389827818,1759863045249,-151.0,0.00021096,2]
[389827820,1759863045259,-1135.0,0.00021096,2]
[389827822,1759863045268,-4088.44770496,0.000211,2]
[389827824,1759863045277,-360.0,0.00021152,2]
[389827826,1759863045286,-18757.2244321,0.00021245,2]
[389827828,1759863045295,-151.0,0.00021283,2]
[389827830,1759863045305,-267.33637326,0.00021298,2]
[389827832,1759863045314,-4088.44770496,0.000213,2]
[389827834,1759863045323,-500.0,0.00021355,2]
[389827836,1759863045332,-2000.0,0.00021357,2]
[389827838,1759863045342,-245.0,0.0002137,2]
[389827840,1759863045351,-245.0,0.0002137,2]
[389827842,1759863045360,-1135.0,0.0002137,2]
[389827844,1759863045368,-559.08930847,0.0002137,2]
[389827846,1759863045378,-169.17761822,0.00021412,2]
[389827847,1759863045387,-800.0,0.00021447,2]
[389827849,1759863045397,-245.0,0.00021557,2]
[389827851,1759863045406,-500.0,0.00021629,2]
[389827853,1759863045415,-1135.0,0.00021644,2]
[389827856,1759863045425,-460.0,0.000217,2]
[389827858,1759863045435,-151.0,0.0002171,7]
[389827859,1759863045444,-299.0,0.0002171,7]
[389827861,1759863045453,-587.0,0.00021768,2]
[389827863,1759863045462,-717.0,0.00021782,2]
[389827865,1759863045471,-717.0,0.00021793,2]
[389827867,1759863045481,-717.0,0.00021825,2]
[389827869,1759863045489,-151.645081,0.00021867,7]
[389827871,1759863045499,-156.171134,0.00021867,7]
[389827873,1759863045508,-717.0,0.00021872,2]
[389827875,1759863045517,-717.0,0.00021886,2]
[389827877,1759863045525,-290.25091954,0.00021898,2]
[389827879,1759863045535,-500.0,0.00021903,2]
[389827881,1759863045544,-1399.49629818,0.00021905,2]
[389827883,1759863045553,-500.0,0.0002191,2]
[389827885,1759863045563,-1135.0,0.00021918,2]
[389827887,1759863045572,-153.324101,0.00021956,2]
[389827889,1759863045581,-1308.40382856,0.00021963,2]
[389827891,1759863045590,-717.0,0.00021992,2]
[389827893,1759863045599,-717.0,0.0002203,2]
[389827895,1759863045608,-1257.0,0.00022043,2]
[389827897,1759863045617,-160.0,0.00022055,6]
[389827899,1759863045628,-500.0,0.00022083,2]
[389827900,1759863045637,-985.74296154,0.00022096,2]
[389827902,1759863045647,-717.0,0.00022096,2]
[389827904,1759863045657,-717.0,0.00022147,2]
[389827906,1759863045666,-199.59400776,0.00022177,2]
[389827908,1759863045675,-1135.0,0.00022192,2]
[389827910,1759863045685,-151.0,0.000222,10]
[389827912,1759863045695,-560.0,0.00022248,2]
[389827914,1759863045704,-181.043666,0.00022255,2]
[389827917,1759863045714,-721.0,0.00022312,2]
[389827918,1759863045723,-717.0,0.00022357,2]
[389827920,1759863045733,-717.0,0.00022393,2]
[389827922,1759863045742,-500.0,0.00022403,2]
[389827924,1759863045751,-172.95490553,0.00022409,18]
[389827926,1759863045760,-717.0,0.0002241,2]
[389827928,1759863045769,-168.0,0.00022448,2]
[389827930,1759863045779,-1135.0,0.00022466,2]
[389827932,1759863045788,-500.0,0.00022486,2]
[389827934,1759863045796,-313.16546581,0.00022498,2]
[389827936,1759863045807,-434.22365653,0.00022501,2]
[389827938,1759863045817,-1735.15773149,0.00022501,2]
[389827940,1759863045826,-1257.0,0.00022522,2]
[389827942,1759863045836,-155.5103344,0.00022525,2]
[389827944,1759863045845,-500.0,0.00022526,2]
[389827946,1759863045855,-151.446544,0.00022532,7]
[389827948,1759863045864,-717.0,0.00022538,2]
[389827950,1759863045873,-717.0,0.00022557,2]
[389827952,1759863045883,-717.0,0.00022607,2]
[389827954,1759863045892,-717.0,0.00022648,2]
[389827956,1759863045901,-154.816444,0.0002265,7]
[389827958,1759863045911,-151.0,0.0002265,7]
[389827960,1759863045920,-151.0,0.0002265,7]
[389827962,1759863045929,-151.0,0.0002265,7]
[389827964,1759863045939,-151.0,0.0002265,7]
[389827966,1759863045948,-151.0,0.0002265,7]
[389827968,1759863045957,-1257.0,0.0002265,2]
[389827970,1759863045966,-717.0,0.00022657,2]
[389827972,1759863045975,-402.02512307,0.000227,7]
[389827974,1759863045985,-533.72506543,0.000227,7]
[389827976,1759863045997,-172.95490553,0.00022722,19]
[389827978,1759863046007,-1135.0,0.0002274,2]
[389827980,1759863046016,-660.0,0.00022796,2]
[389827982,1759863046031,-151.0,0.000228,7]
[389827984,1759863046041,-1450.241393,0.00022851,7]
[389827986,1759863046051,-1450.241393,0.00022851,7]
[389827988,1759863046062,-1450.241393,0.00022851,7]
[389827990,1759863046072,-1450.241393,0.00022851,7]
[389827993,1759863046082,-500.0,0.00022932,2]
[389827995,1759863046093,-500.0,0.00022939,2]
[389827998,1759863046104,-500.0,0.00022939,2]
[389828001,1759863046113,-500.0,0.00022939,2]
[389828003,1759863046122,-500.0,0.00022939,2]
[389828006,1759863046133,-500.0,0.00022939,2]
[389828009,1759863046143,-500.0,0.00022939,2]
[389828011,1759863046153,-223.3642302,0.00022968,2]
[389828014,1759863046164,-183.3665374,0.00022968,2]
[389828016,1759863046174,-220.4092554,0.00022968,2]
[389828019,1759863046183,-14667.6165976,0.00022968,2]
[389828021,1759863046192,-500.0,0.00022973,2]
[389828024,1759863046202,-500.0,0.00022973,2]
[389828025,1759863046211,-500.0,0.00022973,2]
[389828027,1759863046220,-500.0,0.00022973,2]
[389828029,1759863046229,-500.0,0.00022973,2]
[389828031,1759863046238,-500.0,0.00022973,2]
[389828033,1759863046247,-500.0,0.00022973,2]
[389828036,1759863046257,-500.0,0.00022973,2]
[389828038,1759863046267,-500.0,0.00022973,2]
[389828040,1759863046276,-500.0,0.00022973,2]
[389828041,1759863046285,-500.0,0.00022973,2]
[389828043,1759863046294,-374.65278337,0.00022973,2]
[389828045,1759863046303,-500.0,0.00022973,2]
[389828047,1759863046313,-500.0,0.00022973,2]
[389828049,1759863046322,-165.75923199,0.00022973,2]
[389828050,1759863046331,-500.0,0.00022973,2]
[389828051,1759863046341,-500.0,0.00022973,2]
[389828052,1759863046351,-500.0,0.00022973,2]
[389828053,1759863046360,-500.0,0.00022973,2]
[389828054,1759863046369,-160.0,0.00023,3]
[389828055,1759863046380,-1998.47061646,0.00023,2]
[389828056,1759863046390,-223.70922238,0.00023,3]
[389828057,1759863046400,-104480.16791447,0.00023,7]
[389828058,1759863046409,-160.0,0.00023,2]
[389828059,1759863046418,-151.0,0.00023,7]
[389828060,1759863046427,-202.3274615,0.00023,2]
[389828061,1759863046437,-1041.66666667,0.00023,2]
[389828062,1759863046446,-151.0,0.00023,7]
[389828063,1759863046456,-151.0,0.00023,7]
[389828064,1759863046466,-151.0,0.00023,7]
[389828065,1759863046475,-151.0,0.00023,7]
[389828066,1759863046485,-533.72506543,0.00023,7]
[389828067,1759863046494,-402.02512307,0.00023,7]
[389828068,1759863046504,-6485.2130512,0.00023,2]
[389828069,1759863046513,-1450.241393,0.00023,7]
[389828071,1759863046522,-1450.241393,0.00023,7]
[389828073,1759863046531,-1450.241393,0.00023,7]
[389828075,1759863046541,-1450.241393,0.00023,7]
[389828077,1759863046550,-500.0,0.00023008,2]
[389828079,1759863046559,-7504.55,0.00023013,2]
[389828081,1759863046569,-261.5905832,0.00023014,2]
[389828083,1759863046578,-1135.0,0.00023014,2]
[389828085,1759863046587,-172.95490553,0.00023034,21]
[389828087,1759863046596,-864.0,0.00023066,20]
[389828089,1759863046605,-391.6048206,0.00023068,2]
[389828091,1759863046615,-369.414219,0.00023068,2]
[389828093,1759863046624,-153.0,0.00023068,2]
[389828095,1759863046633,-3517.0,0.00023076,2]
[389828097,1759863046642,-336.08001209,0.00023098,2]
[389828099,1759863046652,-200.0,0.000231,2]
[389828101,1759863046661,-153.324101,0.00023134,2]
[389828103,1759863046670,-980.0,0.00023172,2]
[389828105,1759863046679,-630.0,0.00023172,2]
[389828107,1759863046688,-2158.0,0.00023172,2]
[389828109,1759863046698,-250.0,0.00023172,2]
[389828111,1759863046708,-411.0,0.00023172,2]
[389828113,1759863046718,-1998.47061646,0.000232,2]
[389828115,1759863046726,-500.0,0.00023275,2]
[389828117,1759863046735,-500.0,0.00023287,2]
[389828119,1759863046745,-1135.0,0.00023288,2]
[389828121,1759863046754,-760.0,0.00023344,2]
[389828123,1759863046764,-172.95490553,0.00023347,22]
[389828125,1759863046773,-800.0,0.00023355,2]
[389828127,1759863046783,-151.0,0.000234,8]
[389828129,1759863046792,-1000.0,0.0002344,5]
[389828131,1759863046801,-800.0,0.00023451,2]
[389828133,1759863046810,-1000.0,0.00023487,2]
[389828135,1759863046819,-1084.91108771,0.00023487,2]
[389828137,1759863046827,-1000.0,0.00023487,2]
[389828139,1759863046836,-576.74277249,0.00023487,2]
[389828141,1759863046846,-1000.0,0.00023487,2]
[389828143,1759863046855,-1000.0,0.00023487,2]
[389828145,1759863046865,-1000.0,0.000235,2]
[389828147,1759863046874,-1998.47061646,0.000235,2]
[389828149,1759863046883,-6485.15,0.000235,2]
[389828151,1759863046892,-200.0,0.0002351,2]
[389828153,1759863046902,-1000.0,0.00023521,2]
[389828155,1759863046911,-1000.0,0.00023521,2]
[389828157,1759863046920,-1000.0,0.00023521,2]
[389828158,1759863046929,-1000.0,0.00023521,2]
[389828161,1759863046938,-1034.99647613,0.00023521,2]
[389828163,1759863046948,-1000.0,0.00023521,2]
[389828164,1759863046957,-1000.0,0.00023521,2]
[389828166,1759863046966,-1000.0,0.00023521,2]
[389828169,1759863046976,-846.44608376,0.00023521,2]
[389828171,1759863046985,-1000.0,0.00023521,2]
[389828172,1759863046996,-1000.0,0.00023521,2]
[389828174,1759863047005,-1000.0,0.00023521,2]
[389828177,1759863047014,-1000.0,0.00023521,2]
[389828179,1759863047028,-1000.0,0.00023521,2]
[389828181,1759863047038,-1000.0,0.00023521,2]
[389828183,1759863047047,-1000.0,0.00023521,2]
[389828185,1759863047057,-1000.0,0.00023521,2]
[389828187,1759863047068,-670.0926908,0.00023553,2]
[389828189,1759863047077,-1000.0,0.00023556,2]
[389828191,1759863047087,-1135.0,0.00023562,2]
[389828193,1759863047098,-500.0,0.00023643,2]
[389828195,1759863047107,-172.95490553,0.0002366,24]
[389828197,1759863047116,-192.9352527,0.00023676,2]
[389828199,1759863047126,-189.5827141,0.00023676,2]
[389828201,1759863047135,-189.5827141,0.00023676,2]
[389828203,1759863047145,-800.0,0.00023688,2]
[389828204,1759863047156,-358.99455837,0.00023698,2]
[389828206,1759863047166,-1998.47061646,0.000237,2]
[389828208,1759863047175,-533.72506543,0.000237,7]
[389828210,1759863047185,-402.02512307,0.000237,7]
[389828212,1759863047195,-176.96952832,0.00023725,2]
[389828214,1759863047204,-823.0,0.00023744,2]
[389828216,1759863047213,-596.15905821,0.00023765,6]
[389828218,1759863047223,-99384.21718667,0.000238,2]
[389828220,1759863047233,-151.0,0.000238,7]
[389828222,1759863047242,-151.0,0.000238,7]
[389828224,1759863047251,-151.0,0.000238,7]
[389828227,1759863047261,-151.0,0.000238,7]
[389828228,1759863047271,-195.70387,0.000238,7]
[389828231,1759863047280,-1450.241393,0.000238,7]
[389828233,1759863047290,-1450.241393,0.000238,7]
[389828234,1759863047300,-1450.241393,0.000238,7]
[389828237,1759863047309,-1450.241393,0.000238,7]
[389828239,1759863047319,-12500.0,0.00023808,7]
[389828240,1759863047328,-18757.2244321,0.00023809,2]
[389828242,1759863047339,-11375.88556264,0.00023825,7]
[389828244,1759863047349,-1000.0,0.00023826,4]
[389828246,1759863047361,-1135.0,0.00023836,2]
[389828248,1759863047372,-190.0,0.0002388,8]
[389828250,1759863047384,-860.0,0.00023892,2]
[389828252,1759863047397,-1998.47061646,0.000239,2]
[389828254,1759863047409,-800.0,0.00023909,2]
[389828256,1759863047420,-3517.0,0.00023958,2]
[389828258,1759863047434,-10000.0,0.00023968,2]
[389828260,1759863047446,-172.95490553,0.00023973,25]
[389828262,1759863047457,-500.0,0.00023981,2]
[389828265,1759863047470,-2009.59,0.00024,2]
[389828266,1759863047482,-160.0,0.00024,7]
[389828269,1759863047495,-234.20938206,0.00024,7]
[389828270,1759863047510,-649.3129541,0.00024,2]
[389828272,1759863047522,-500.0,0.00024007,2]
[389828275,1759863047534,-1500.0,0.00024035,2]
[389828276,1759863047546,-1500.0,0.00024035,2]
[389828278,1759863047562,-1500.0,0.00024035,2]
[389828281,1759863047577,-1500.0,0.00024035,2]
[389828283,1759863047589,-1450.241393,0.00024068,7]
[389828285,1759863047601,-1450.241393,0.00024068,7]
[389828287,1759863047612,-1450.241393,0.00024068,7]
[389828289,1759863047623,-1450.241395,0.00024068,7]
[389828291,1759863047647,-1500.0,0.00024068,2]
[389828292,1759863047660,-1500.0,0.00024068,2]
[389828294,1759863047672,-1200.73698792,0.00024068,2]
[389828296,1759863047686,-1500.0,0.00024068,2]
[389828298,1759863047697,-1500.0,0.00024068,2]
[389828300,1759863047710,-1500.0,0.00024068,2]
[389828302,1759863047722,-1500.0,0.00024068,2]
[389828304,1759863047734,-685.30445961,0.00024068,2]
[389828306,1759863047745,-1500.0,0.00024068,2]
[389828308,1759863047756,-1500.0,0.00024068,2]
[389828310,1759863047768,-583.01996599,0.00024068,2]
[389828465,1759863049363,-642.19313161,0.00024068,2]
[389828491,1759863049593,-212.274,0.00023172,2]
[389828493,1759863049603,-274.7869024,0.00024068,2]
[389828495,1759863049612,-1500.0,0.00024068,2]
[389828497,1759863049622,-1500.0,0.00024068,2]
[389828499,1759863049633,-1622.33894552,0.00024068,2]
[389828501,1759863049642,-1500.0,0.00024068,2]
[389828503,1759863049651,-717.0,0.00024086,2]
[389828505,1759863049660,-200.0,0.000241,2]
[389828507,1759863049669,-1500.0,0.00024104,2]
[389828509,1759863049678,-1135.0,0.0002411,2]
[389828511,1759863049688,-153.324101,0.00024136,3]
[389828513,1759863049697,-1998.47061646,0.000242,2]
[389828514,1759863049706,-234.20938206,0.000242,7]
[389828515,1759863049716,-151.0,0.000242,7]
[389828516,1759863049725,-153.324101,0.000242,22]
[389828517,1759863049734,-169.17761822,0.00024241,2]
[389828518,1759863049743,-164.0,0.00024247,12]
[389828519,1759863049752,-172.95490553,0.00024286,27]
[389828520,1759863049761,-153.324101,0.00024295,22]
[389828521,1759863049770,-381.90910465,0.00024298,2]
[389828522,1759863049780,-153.324101,0.00024312,2]
[389828523,1759863049789,-1135.0,0.00024384,2]
[389828524,1759863049798,-800.0,0.0002439,2]
[389828525,1759863049807,-153.324101,0.0002439,22]
[389828526,1759863049816,-2000.0,0.000244,2]
[389828527,1759863049825,-2000.0,0.000244,2]
[389828528,1759863049834,-1998.47061646,0.000244,2]
[389828529,1759863049844,-153.324101,0.0002443,7]
[389828530,1759863049853,-796.116,0.00024431,7]
[389828531,1759863049862,-960.0,0.0002444,2]
[389828532,1759863049872,-800.0,0.00024487,2]
[389828533,1759863049882,-500.0,0.00024487,9]
[389828534,1759863049892,-2000.0,0.000245,2]
[389828535,1759863049901,-151.0,0.000245,7]
[389828536,1759863049910,-153.324101,0.000245,30]
[389828537,1759863049919,-171.7948836,0.000245,10]
[389828538,1759863049932,-78.2051164,0.000245,10]
[389828539,1759863049941,-500.0,0.00024504,2]
[389828540,1759863049951,-200.0,0.0002451,2]
[389828541,1759863049960,-800.0,0.00024511,2]
[389828542,1759863049970,-2000.0,0.00024583,2]
[389828543,1759863049979,-912.39679484,0.00024583,2]
[389828544,1759863049988,-2000.0,0.00024583,2]
[389828545,1759863049998,-2000.0,0.00024583,2]
[389828546,1759863050008,-500.0,0.00024595,2]